Cogmind - Beta 14 @@@ ROGUE MODE // 2024.08.15 @ 06:46:24 Player: ducanus Result: Escaped! Performance ------------- Evolutions (9) 4500 Regions Visited (22) 4400 Robots Destroyed (403) 2015 Value Destroyed (17650) 17650 Prototype IDs (35) 700 Alien Tech Used (0) 0 Bonus (9291) 9291 TOTAL SCORE: 38556 Bonus ------- High Alert Combat Kills 3494 Follower Combat Kills 463 Entered Garrisons 400 Used RIF Installer 500 Entered DSFs 1000 Met R17 at Cetus 500 Win 3000 Friendly Fire -66 Cogmind --------- Core Integrity 1000/1600 Matter 300/300 Energy 1000/100 System Corruption 0% Temperature Cool (0) Movement Core (50) Location To Epsilon Eridani Parts ------- > --- POWER (1) -------- (None) > --- PROPULSION (4) --- (None) > --- UTILITY (10) ----- (None) > --- WEAPON (10) ------ (None) > --- INVENTORY (5) ---- Centrium Leg Phase Gun Heavy Wave Gun Enhanced Quantum Rifle Advanced Micro-nuke Launcher Peak State ------------ > --- POWER ------------ (None) > --- PROPULSION ------- Advanced Heavy Treads Advanced Heavy Treads > --- UTILITY ---------- Advanced Weight Redist. System Enhanced Optical Array Advanced Targeting Computer Advanced ECM Suite Advanced Phase Shifter Force Field Point Defense System Antimissile System > --- WEAPON ----------- Phase Gun Enhanced Nova Cannon Enhanced Nova Cannon Heavy Machine Gun KE Penetrator Hardcell Cannon Linear Accelerator Linear Accelerator Linear Accelerator > --- INVENTORY -------- Quantum Reactor Advanced Drone Bay Coil Gun Improved Plasma Cutter [Rating: 145] Favorites ----------- Power Ion Engine Engine Ion Engine Power Core Neutrino Core Reactor Particle Reactor Propulsion Improved Flight Unit Treads Centrium Heavy Treads Leg Aluminum Leg Wheel Wheel Hover Unit Improved Hover Unit Flight Unit Improved Flight Unit Utility Improved Targeting Computer Device Advanced Heat Sink Storage Small Storage Unit Processor Improved Targeting Computer Hackware Hacking Suite Protection Centrium Medium Armor Plating Weapon Linear Accelerator Energy Gun Advanced Variable Charge Gun Energy Cannon Ion Cannon Ballistic Gun Advanced KE Penetrator Ballistic Cannon Linear Accelerator Launcher Gamma Bomb Array Special Weapon Mining Laser Impact Weapon Great Maul Slashing Weapon Scythe Piercing Weapon Kinetic Spear Special Melee Weapon Datajack Build | -11 -10 -9 -9 -8 -7 -7 -7 -6 -5 -5 -5 -5 -5 -5 -4 -4 -4 -3 -3 -2 -1 -1 ------- Run | Yrd Mat Mat Min Mat Fac DSF Gar Fac Fac Gar Ext Cet Arc Hub Fac Upp Upp Res DSF Res Acc Com Slots Evolved 18 | . . 2 . 2 2 . . 2 2 . . . . . 2 . . 2 . 2 2 . Power . | . . . . . . . . . . . . . . . . . . . . . . . Propulsion 2 | . . 1 . 1 . . . . . . . . . . . . . . . . . . Utility 8 | . . 1 . 1 1 . . 1 2 . . . . . . . . . . 1 1 . Weapon 8 | . . . . . 1 . . 1 . . . . . . 2 . . 2 . 1 1 . Parts Attached 514 | 6 29 30 3 65 1 7 2 23 60 15 66 29 6 3 60 1 6 5 28 33 29 7 Power 27 | 1 3 5 3 6 . . 1 . 1 2 2 2 1 . . . . . . . . . Engine 18 | 1 3 5 3 5 . . . . . . 1 . . . . . . . . . . . Core 6 | . . . . 1 . . 1 . 1 2 1 . . . . . . . . . . . Reactor 3 | . . . . . . . . . . . . 2 1 . . . . . . . . . Propulsion 110 | 2 12 13 . 8 . . . 7 13 2 10 3 . . 16 . 4 . 8 2 8 2 Treads 18 | . . 3 . . . . . . 3 . 5 2 . . . . . . 2 1 2 . Leg 31 | 2 9 . . 1 . . . 3 1 . 2 . . . 8 . . . 4 1 . . Wheel 3 | . 2 . . . . . . . . . . . . . 1 . . . . . . . Hover 13 | . . 1 . . . . . 4 4 . 3 1 . . . . . . . . . . Flight 45 | . 1 9 . 7 . . . . 5 2 . . . . 7 . 4 . 2 . 6 2 Utility 159 | 1 5 3 . 29 . 5 . 7 14 10 34 10 3 2 14 . . . 5 10 5 2 Device 74 | . 4 . . 17 . 3 . 2 7 . 14 2 2 1 7 . . . 4 7 2 2 Storage 4 | 1 1 . . 1 . . . . . . . . . . 1 . . . . . . . Processor 34 | . . 3 . 4 . 1 . 4 7 . 8 3 . . 1 . . . 1 2 . . Hackware 23 | . . . . . . . . . . 10 8 . . . 3 . . . . 1 1 . Protection 24 | . . . . 7 . 1 . 1 . . 4 5 1 1 2 . . . . . 2 . Artifact . | . . . . . . . . . . . . . . . . . . . . . . . Weapon 218 | 2 9 9 . 22 1 2 1 9 32 1 20 14 2 1 30 1 2 5 15 21 16 3 Energy Gun 43 | 1 2 2 . 4 . . . . 4 1 4 6 2 1 6 . . . 5 3 2 . Energy Cannon 36 | . 1 4 . 2 . 1 . 9 5 . 2 . . . 4 . . . 2 6 . . Ballistic Gun 64 | 1 3 2 . 4 . . . . 15 . 6 8 . . 14 1 2 . . 3 5 . Ballistic Cannon 28 | . . . . 6 1 . . . 3 . 4 . . . 1 . . . 4 1 8 . Launcher 15 | . . 1 . 1 . . . . . . . . . . 1 . . . 3 6 . 3 Special Weapon 14 | . 3 . . . . . . . 3 . 1 . . . 1 . . 5 . 1 . . Impact Weapon 4 | . . . . 2 . . . . . . 1 . . . . . . . 1 . . . Slashing Weapon 7 | . . . . 3 . . . . 1 . 1 . . . 1 . . . . . 1 . Piercing Weapon 1 | . . . . . . . . . 1 . . . . . . . . . . . . . Special Melee Weapon 6 | . . . . . . 1 1 . . . 1 . . . 2 . . . . 1 . . Unidentified Prototypes 21 | . . 2 . 4 . 1 . 1 2 . . 4 . . 4 . . . . 1 1 1 Corrupted Parts 2 | . . . . . . . . . . . . . . . . . . . 1 1 . . System Corruption 14 | . . . . . . . . . . . . . . . . . . . 10 4 . . Parts Lost 361 | . 20 9 1 9 . . 9 18 52 14 47 25 1 6 53 5 4 . 13 41 27 7 Power 17 | . 3 2 1 4 . . 2 . 1 1 2 . . . 1 . . . . . . . Propulsion 81 | . 7 4 . 2 . . 4 6 11 2 8 3 . 1 13 3 1 . 3 3 8 2 Utility 109 | . 3 1 . . . . . 7 15 10 22 9 . 4 12 1 1 . 2 14 6 2 Weapon 154 | . 7 2 . 3 . . 3 5 25 1 15 13 1 1 27 1 2 . 8 24 13 3 Highest Loss Streak 19 | . 11 5 1 3 . . 5 7 10 10 8 11 1 5 19 5 4 . 12 15 15 3 To Critical Strikes 10 | . . . . . . . . . . . . 5 . . 3 . . . . 2 . . Average Slot Usage (%) 55 | . 81 91 96 89 72 84 77 61 45 23 51 36 74 79 44 29 25 36 43 47 25 1 Engine 2 | . 12 9 8 4 7 7 . . . . . . . . . . . . . . . . Treads 2 | . . 10 . . . . . . 3 . 1 3 11 10 1 . . . 1 5 2 . Leg 2 | . 13 . . . . . . 1 . . 1 . . . 4 . . . 6 . . . Wheel 1 | . 10 3 . . . . . . . . . . . . . . . . . . . . Flight 5 | . . 15 33 31 30 30 26 . 1 . . . . . . 7 5 14 . . 1 . Device 6 | . 13 3 . 7 7 5 . 3 4 . 7 3 7 7 11 5 2 . 7 11 . 1 Storage 1 | . 10 . . . . . . . . . . . . . . . . . . . . . Processor 10 | . . 25 33 27 23 29 30 26 18 . 5 1 11 11 5 . . . 2 6 3 . Hackware 3 | . . . . . . . . . . 20 13 . . . . 7 5 4 . . 2 . Protection 2 | . . . . 1 . 1 7 3 . . 3 7 14 18 2 5 5 4 4 . . . Energy Gun 3 | . 3 7 . 1 . . . . 1 . . 6 16 16 9 . . . . . 3 . Energy Cannon 3 | . 4 9 22 2 . . . 17 1 . . . . . . . . . . 3 . . Ballistic Gun 3 | . 9 4 . 5 . . . . 5 . 3 8 5 5 3 . 6 4 . 2 1 . Ballistic Cannon 2 | . . . . 3 3 7 3 . 2 . 4 . . . 1 . . . 13 9 10 . Peak Build Rating 145 | 6 7 24 23 35 27 33 35 49 78 36 63 95 119 119 117 42 22 45 100 145 109 21 Average Rating 38 | 5 5 14 21 28 23 29 28 32 34 16 36 53 112 113 58 25 16 27 63 83 49 5 On Entrance 31 | . 6 5 22 21 27 27 33 14 8 1 1 51 95 119 79 42 12 15 39 100 6 2 Naked Turns 1302 | . 5 . . . . . . . 15 549 46 119 . . 149 . . . . . 164 255 Heaviest Build 112 | 13 21 20 15 18 16 17 19 39 25 14 48 58 72 73 71 6 8 12 69 112 92 9 Greatest Support 160 | 20 26 60 15 20 19 19 19 40 81 8 57 160 160 160 80 21 12 12 140 149 102 6 Greatest Overweight (x) 25 | 2 5 4 . 5 . . . 12 4 4 11 19 . . 19 1 1 . 8 7 25 2 Average Overweight (x) . | . . . . . . . . 1 . . . 2 . . . . . . . . . . Largest Inventory Capacity 10 | 8 10 5 5 5 5 5 5 5 5 5 5 5 5 5 5 5 5 5 5 5 5 5 Average Capacity 5 | 7 8 5 5 5 5 5 5 5 5 5 5 5 5 5 5 5 5 5 5 5 5 5 Most Carried 8 | 5 8 5 5 5 5 5 5 5 5 5 5 5 5 5 5 5 5 5 5 5 5 5 Average Carried 4 | 3 5 4 5 4 5 4 4 4 4 5 2 4 5 5 4 5 5 4 5 4 3 4 Final Capacity 8 | 8 5 5 5 5 5 5 5 5 5 5 5 5 5 5 5 5 5 5 5 5 5 5 Final Carried 5 | 5 5 5 5 5 5 5 4 5 5 5 5 5 5 5 5 5 5 5 5 5 3 5 Class Distribution -------------------- 49% | Mutant 8% | Scavenger-Tank 8% | Executioner 7% | Sprinter 4% | Scavenger-Gunner 4% | Scavenger-Mutant 3% | Gunner 3% | Hacker-Mutant Dominant Class ---------------- Mutant | -10/Materials Mutant | -9/Materials Mutant | -9/Mines Sprinter | -8/Materials Sprinter | -7/Factory Sprinter | -7/DSF Sprinter | -7/Garrison Gunner | -6/Factory Mutant | -5/Factory Mutant | -5/Garrison Hacker-Mutant | -5/Extension Scavenger-Tank | -5/Cetus Scavenger-Tank | -5/Archives Scavenger-Tank | -5/Hub_04(d) Mutant | -4/Factory Mutant | -4/Upper Caves Mutant | -4/Upper Caves Mutant | -3/Research Executioner | -3/DSF Executioner | -2/Research Mutant | -1/Access Mutant | -1/Command Resources | -11 -10 -9 -9 -8 -7 -7 -7 -6 -5 -5 -5 -5 -5 -5 -4 -4 -4 -3 -3 -2 -1 -1 ----------- Run | Yrd Mat Mat Min Mat Fac DSF Gar Fac Fac Gar Ext Cet Arc Hub Fac Upp Upp Res DSF Res Acc Com Matter Collected 214 | 194 10 . . . . . . . . . . 10 . . . . . . . . . . Remotely . | . . . . . . . . . . . . . . . . . . . . . . . Salvage Created 18708 | 17 836 1190 273 1628 . 475 139 472 2326 351 895 1141 408 864 1925 . 110 . 874 3704 713 367 Parts 938 | 3 59 89 20 103 . 24 9 21 115 8 43 62 19 37 104 . 11 . 40 126 33 12 Haulers Intercepted 10 | . 1 1 . 4 . 2 . . 1 . . . . . 1 . . . . . . . Recyclers Shooed 17 | . 1 . . 1 . . . . 7 . . . . . 2 . . . . 4 1 1 Parts Field Recycled . | . . . . . . . . . . . . . . . . . . . . . . . Retrieved Matter . | . . . . . . . . . . . . . . . . . . . . . . . Parts Self-Destructed 6 | . . . . . . . . . . . . . . . . . 6 . . . . . Prevented . | . . . . . . . . . . . . . . . . . . . . . . . Kills | -11 -10 -9 -9 -8 -7 -7 -7 -6 -5 -5 -5 -5 -5 -5 -4 -4 -4 -3 -3 -2 -1 -1 ------- Run | Yrd Mat Mat Min Mat Fac DSF Gar Fac Fac Gar Ext Cet Arc Hub Fac Upp Upp Res DSF Res Acc Com Combat Hostiles Destroyed 313 | . 25 30 11 36 . 6 5 5 27 5 15 18 4 14 32 . 5 . 11 41 16 7 Melee 24 | . 3 . . . . . . . 2 4 3 6 . . 3 . . . . . 1 2 Guns 115 | . 17 10 . 12 . . . . 17 1 6 11 4 14 13 . 5 . 1 1 3 . Cannons 127 | . 5 18 11 21 . 6 4 4 8 . 5 . . . 8 . . . . 25 12 . AOE 39 | . . 2 . 3 . . 1 . . . . . . . 8 . . . 9 11 . 5 Classes Destroyed 19 | 1 6 2 1 1 . 2 . 1 2 . 1 . . . . . . . 1 . 1 . Worker 18 | . . 2 . 1 . . . . 6 . . . . 2 1 . . . . 4 1 1 Builder 20 | . 1 2 . 4 . . . . 5 . 1 . . 2 3 . . . . 2 . . Tunneler 2 | 1 . . . . . . . . . . . . . . . . . . . 1 . . Hauler 10 | . 1 1 . 4 . 2 . . 1 . . . . . 1 . . . . . . . Recycler 11 | . . . . . . . . . 4 . . . . . 1 . . . . 6 . . Mechanic 2 | . . . . . . . . 1 . . . . . . . . . . . . . 1 Operator 7 | . 1 1 . . . . . 1 . . 1 . 1 . . . . . . 2 . . Watcher 20 | . 2 5 . 4 . . . . 2 . 1 1 . 1 2 . . . . 2 . . Swarmer 77 | . 9 10 7 7 . . 3 . . 1 4 2 . 4 12 . 5 . 4 2 4 3 Cutter 1 | . . . . . . . . . . . . . . . . . . . 1 . . . Grunt 116 | . 16 13 3 18 . 2 2 2 9 . 6 9 . 7 5 . . . 4 13 4 3 Brawler 2 | . . . 1 1 . . . . . . . . . . . . . . . . . . Duelist 2 | . . . . . . . . . . . . . . . . . . . . . 2 . Sentry 33 | . . 7 . 9 . . . 1 . 3 3 . 4 1 2 . . . . 3 . . Specialist 8 | . . . . . . 2 . . . . . . . 2 . . . . 1 3 . . Hunter 46 | . . . . 1 . 1 . 2 15 . . 2 . . 10 . . . . 13 2 . Programmer 18 | . . . . . . . . . 3 1 1 . . . 3 . . . . 5 4 1 Heavy 4 | . . . . . . 1 . . . . . . . . . . . . 1 2 . . Behemoth 1 | . . . . . . . . . . . 1 . . . . . . . . . . . Cetus Guard 5 | . . . . . . . . . . . . 5 . . . . . . . . . . Best Kill Streak 19 | 1 5 6 9 13 . 2 2 3 13 1 6 5 4 10 7 . 4 . 6 19 6 7 Combat Bots Only 13 | . 5 5 8 6 . 2 2 2 5 1 4 5 4 7 7 . 4 . 6 13 5 5 Max Kills in Single Turn 5 | 1 1 2 1 3 . 1 1 1 2 1 2 1 1 2 3 . 2 . 3 5 2 3 Gunslinging 1 | . . . . . . . . . 1 . . . . . 1 . 1 . . . . . Exploded 3 | . . 1 . 2 . . 1 . . . . . . . 2 . . . 3 3 . 2 Melee 1 | . 1 . . . . . . . 1 1 1 1 . . 1 . . . . . 1 1 Uniques/NPCs Destroyed . | . . . . . . . . . . . . . . . . . . . . . . . Combat | -11 -10 -9 -9 -8 -7 -7 -7 -6 -5 -5 -5 -5 -5 -5 -4 -4 -4 -3 -3 -2 -1 -1 -------- Run | Yrd Mat Mat Min Mat Fac DSF Gar Fac Fac Gar Ext Cet Arc Hub Fac Upp Upp Res DSF Res Acc Com Hostile Shots Fired 7710 | . 277 150 42 150 . 20 102 302 953 367 408 861 23 103 1202 57 34 . 131 636 1286 606 Missed 2577 | . 67 51 25 63 . 10 34 106 339 102 131 255 6 32 413 26 8 . 34 231 422 222 Damage Taken 102258 | . 2289 1082 160 1302 . 204 954 2970 11546 5954 6096 13947 443 1127 13012 605 377 . 3421 9447 18520 8802 Core 63020 | . 782 321 36 390 . 10 598 1254 5976 5515 2667 8942 . 94 7578 408 153 . 2347 3746 14152 8051 Absorbed by Shields 2315 | . . . . . . . 100 . 169 72 445 . . . . . . . 18 779 397 335 Redirected to Shielding 449 | . . . . . . . 30 136 . . . 25 . 100 5 12 3 . 24 13 101 . Ignored by Resistances 305 | . . . . . . . . . . . 50 15 . . 192 . . . . 48 . . Regen/Repaired (Parts) 271 | . . . . 52 219 . . . . . . . . . . . . . . . . . Core Remaining (%) 83 | 100 100 . 100 72 . . 57 100 . . . . . 100 . . 86 . 76 68 . 62 Volleys Fired 1119 | 11 139 106 26 136 . 30 34 24 146 5 76 64 17 30 101 . 14 1 31 97 26 5 Largest 9 | 1 2 2 2 2 . 1 1 4 4 1 3 4 4 4 6 . 2 1 4 9 9 2 Hottest 686 | 50 150 125 120 120 . 60 60 340 221 81 204 275 303 303 443 . 52 20 264 686 530 60 Shots Fired 2471 | 11 198 191 52 182 . 30 34 53 303 5 150 171 57 114 245 . 16 1 44 443 165 6 Gun 1286 | 11 148 62 . 83 . . . . 210 5 76 165 57 114 190 . 16 . 13 74 62 . Cannon 1071 | . 38 124 52 97 . 30 34 53 88 . 71 6 . . 48 . . . 16 311 103 . Launcher 93 | . . 5 . 2 . . . . . . . . . . 7 . . . 15 58 . 6 Special 21 | . 12 . . . . . . . 5 . 3 . . . . . . 1 . . . . Kinetic 1281 | . 96 14 . 126 . 30 34 . 238 . 106 72 17 30 103 . 16 . 8 264 127 . Thermal 1032 | 11 96 172 52 52 . . . 53 26 5 41 99 40 84 124 . . 1 21 117 38 . Explosive 31 | . . 5 . 2 . . . . . . . . . . 7 . . . 1 10 . 6 Electromagnetic 121 | . 6 . . 2 . . . . 36 . . . . . 11 . . . 14 52 . . Robot Hit Streak 24 | 1 10 24 8 14 . 12 18 20 17 6 12 24 13 14 10 . 5 . 12 19 15 21 Robot Miss Streak 13 | . 5 6 5 8 . 2 7 1 5 . 4 4 2 4 7 . 4 . 12 13 5 . Penetration Max 2 | . . . . . . . . . 1 . 1 . 1 1 2 . . . . 1 1 . Secondary Targets 23 | . 4 . . 1 . . . . 5 . . 5 1 4 2 . 1 . . . . . Max Gunslinging Chain 1 | . 1 . . 1 . . . . 1 . . 1 1 1 1 . 1 . . . . . Shots Hit Robots 1424 | 1 116 140 27 123 . 22 19 34 188 5 108 93 24 74 131 2 10 . 23 205 73 6 Core Hits 1171 | 1 61 84 12 78 . 13 10 20 99 90 71 119 16 29 137 . 11 . 37 187 48 48 Critical Kills 18 | . . . . 1 . . . 1 6 . 3 1 1 2 2 . . . . 1 . . Critical Parts Destroyed 26 | . . . . . . . . . 5 . 8 7 1 4 . . . . . 1 . . Critical Strikes 86 | . 2 . . 5 . 1 3 1 24 . 14 8 2 6 4 . . . . 12 4 . Burn 5 | . 2 . . . . . . . . . 2 . . . 1 . . . . . . . Meltdown 3 | . . . . . . . . 1 . . . . . . 1 . . . . 1 . . Destroy 40 | . . . . . . . . . 11 . 11 8 2 6 1 . . . . 1 . . Blast 30 | . . . . 4 . 1 3 . 8 . . . . . 1 . . . . 10 3 . Corrupt 4 | . . . . . . . . . 4 . . . . . . . . . . . . . Smash 2 | . . . . 1 . . . . . . 1 . . . . . . . . . . . Sever 2 | . . . . . . . . . 1 . . . . . . . . . . . 1 . Melee Attacks 44 | . . . . 7 . . 3 . 5 . 12 . . . 2 2 . . 3 2 8 . Thermal 2 | . . . . . . . . . 2 . . . . . . . . . . . . . Impact 12 | . . . . 6 . . . . . . 3 . . . . . . . 3 . . . Slashing 12 | . . . . 1 . . . . . . 3 . . . . . . . . . 8 . Piercing 3 | . . . . . . . . . 3 . . . . . . . . . . . . . Sneak Attacks 10 | . . . . 3 . . . . . . 6 . . . . . . . . 1 . . Combat Hostiles . | . . . . . . . . . . . . . . . . . . . . . . . Follow-up Attacks . | . . . . . . . . . . . . . . . . . . . . . . . Damage Inflicted 51608 | 13 1613 2575 650 4219 . 1105 1178 1098 5072 717 3198 3051 651 2244 5271 . 199 . 1551 12102 3097 2004 Guns 17842 | 13 1031 747 . 979 . . . . 3189 150 1119 2341 651 2206 2900 . 199 . 343 927 1047 . Cannons 21122 | . 383 1742 650 2142 . 1105 1145 1071 1662 . 1578 170 . . 741 . . . 186 6709 1838 . Explosions 9235 | . . 81 . 611 . . . . . . . . . . 1323 . . . 949 4414 . 1857 Melee 974 | . . . . 485 . . . . 93 . 173 . . . . . . . 67 . 156 . Ramming 2325 | . 103 5 . 2 . . 33 27 114 567 328 540 . 38 307 . . . 6 52 56 147 Kinetic 20522 | . 538 180 . 2213 . 1105 1145 . 3675 . 1796 984 278 443 1356 . 199 . . 4374 2236 . Thermal 17757 | 13 903 2309 650 871 . . . 1071 460 150 901 1527 373 1763 2194 . . . 582 3341 649 . Explosive 5360 | . . 81 . 611 . . . . . . . . . . 1323 . . . 100 1388 . 1857 Electromagnetic 4644 | . 69 . . 37 . . . . 730 . . . . . 91 . . . 770 2947 . . Impact 635 | . . . . 485 . . . . . . 57 . . . . . . . 93 . . . Slashing 272 | . . . . . . . . . . . 116 . . . . . . . . . 156 . Piercing 93 | . . . . . . . . . 93 . . . . . . . . . . . . . Highest Corruption 23 | . 1 . . . . . 2 5 23 2 2 2 . . 2 . . . 10 4 . 1 Average Corruption 8 | . 1 . . . . . 2 4 17 1 1 1 . . 1 . . . 10 2 . 1 Corruption Purged . | . . . . . . . . . . . . . . . . . . . . . . . Corruption Blocked . | . . . . . . . . . . . . . . . . . . . . . . . Effects 68 | . 7 . . . . . . 3 57 . . 1 . . . . . . . . . . Message Errors 16 | . 3 . . . . . . . 13 . . . . . . . . . . . . . Matter Fused 14 | . 3 . . . . . . 2 8 . . 1 . . . . . . . . . . Heat Flow Errors 6 | . 1 . . . . . . . 5 . . . . . . . . . . . . . Energy Discharges 4 | . . . . . . . . . 4 . . . . . . . . . . . . . Data Loss (minor) 4 | . . . . . . . . 1 3 . . . . . . . . . . . . . Data Loss (major) 5 | . . . . . . . . . 5 . . . . . . . . . . . . . Misfires 2 | . . . . . . . . . 2 . . . . . . . . . . . . . Misdirections 3 | . . . . . . . . . 3 . . . . . . . . . . . . . Weapon Failures 14 | . . . . . . . . . 14 . . . . . . . . . . . . . Overload Shots . | . . . . . . . . . . . . . . . . . . . . . . . Overflow Damage 1237 | . . 4 4 247 . 10 196 . 68 . 117 . . . 150 . . . 9 335 67 30 Projectiles 694 | . . 4 4 32 . 10 196 . 68 . 60 . . . 4 . . . 7 242 67 . Explosions 325 | . . . . 54 . . . . . . . . . . 146 . . . 2 93 . 30 Melee 218 | . . . . 161 . . . . . . 57 . . . . . . . . . . . Knockbacks 96 | . . . . 8 . 3 13 . 7 1 7 5 . . 7 . . . 1 22 21 1 Impact 16 | . . . . 1 . . . . . 1 2 5 . . 4 . . . 1 1 . 1 Kinetic 74 | . . . . 7 . 3 12 . 7 . 5 . . . 2 . . . . 20 18 . Secondary 6 | . . . . . . . 1 . . . . . . . 1 . . . . 1 3 . Self-Inflicted Damage 2118 | . 21 . . 140 . . 15 9 49 250 156 232 . . 323 . . . 272 548 34 69 Shots 55 | . . . . 2 . . . . . . . . . . 3 . . . 24 26 . . Rammed 702 | . 22 2 . 1 . . 9 14 29 189 87 175 . 6 92 . . . 1 16 17 42 Targets Rammed 745 | . 57 2 . 1 . . 9 14 30 189 87 175 . 6 99 . . . 1 16 17 42 Kicked 42 | . 35 . . . . . . . . . . . . . 7 . . . . . . . Crushed 1 | . . . . . . . . . 1 . . . . . . . . . . . . . Highest Temperature 666 | 40 52 95 60 36 . . 14 450 198 41 90 165 165 183 336 . . . 666 537 320 . Average Temperature 64 | 13 14 29 29 11 . . 9 78 19 34 20 63 70 78 87 . . . 141 134 97 . Received Heat Transfer 12181 | . 990 300 36 423 . . 194 699 1410 1100 1633 2452 54 354 275 112 . . 181 564 1044 360 Effects 9 | . . . . . . . . . . . . . . . 1 . . . 3 5 . . Energy Bleed 1 | . . . . . . . . . . . . . . . . . . . . 1 . . Interference 2 | . . . . . . . . . . . . . . . . . . . 2 . . . Matter Decay 2 | . . . . . . . . . . . . . . . . . . . 1 1 . . Short Circuit 2 | . . . . . . . . . . . . . . . . . . . . 2 . . Damage (minor) 2 | . . . . . . . . . . . . . . . 1 . . . . 1 . . Siege Activations . | . . . . . . . . . . . . . . . . . . . . . . . Robots Corrupted 5 | . . . . . . . . . . . 1 . . . . . . . 1 3 . . Combat Hostiles 5 | . . . . . . . . . . . 1 . . . . . . . 1 3 . . Parts Fried 51 | . 1 . . 2 . . . . 3 . 1 . . . . . . . 8 36 . . Impact Corruptions 4 | . . . . 3 . . . . . . 1 . . . . . . . . . . . Robots Melted 4 | . . . . . . . . 1 . . . 1 . . 1 . . . . 1 . . Combat Hostiles 3 | . . . . . . . . 1 . . . 1 . . . . . . . 1 . . Parts Melted 37 | . 7 6 . 1 . . . 4 1 . 3 2 1 2 10 . . . . . . . Heat Transferred 23657 | 37 2420 3842 1036 1129 . . . 1036 716 185 1249 2050 481 2257 2720 . . . 692 2864 943 . Parts Sabotaged 3 | . . . . . . . . . 1 . . . . . 2 . . . . . . . Parts Stolen . | . . . . . . . . . . . . . . . . . . . . . . . Parts Stripped . | . . . . . . . . . . . . . . . . . . . . . . . Power Chain Reactions 10 | . . . . . . . . . . . . . . . . . . . 5 5 . . Alert | -11 -10 -9 -9 -8 -7 -7 -7 -6 -5 -5 -5 -5 -5 -5 -4 -4 -4 -3 -3 -2 -1 -1 ------- Run | Yrd Mat Mat Min Mat Fac DSF Gar Fac Fac Gar Ext Cet Arc Hub Fac Upp Upp Res DSF Res Acc Com Peak Influence 1815 | 5 211 529 355 573 260 365 743 522 531 643 420 251 345 589 913 . . 401 489 1731 1312 1815 Initial 1032 | . 3 59 127 78 260 182 273 389 201 368 334 84 100 120 196 . . 401 300 274 1032 839 Average 356 | . 93 330 246 292 260 283 481 438 200 442 260 64 279 320 401 . . 401 440 762 1157 1161 Maximum Alert Level 5 | . 1 2 1 2 1 1 3 2 2 2 2 1 1 2 3 . . 2 2 5 4 5 Low Security (%) 33 | 100 96 16 25 28 . 6 . . 44 . 33 89 16 21 12 . . . . 7 . . Level 1 33 | . 3 54 74 46 100 93 14 18 43 10 59 10 83 57 43 . . . 22 31 . . Level 2 22 | . . 29 . 25 . . 84 81 12 89 7 . . 20 37 . . 100 77 12 . . Level 3 4 | . . . . . . . 1 . . . . . . . 6 . . . . 19 28 55 Level 4 5 | . . . . . . . . . . . . . . . . . . . . 16 71 27 Level 5 1 | . . . . . . . . . . . . . . . . . . . . 12 . 16 High Security . | . . . . . . . . . . . . . . . . . . . . . . . Max Security . | . . . . . . . . . . . . . . . . . . . . . . . Sterilizations 1 | . . . . . . . . . . . . . . . . . . . 1 . . . Squads Dispatched 111 | . 6 5 . 12 1 1 . 5 19 . 5 2 . 4 12 . . . 2 17 14 6 Investigation 53 | . 3 5 . 10 1 . . 3 5 . 4 2 . 1 4 . . . . 3 6 6 Extermination 9 | . . . . . . . . . 3 . . . . . 1 . . . . 2 3 . Reinforcement 35 | . 3 . . 1 . 1 . . 6 . 1 . . 3 6 . . . 2 10 2 . Assault 8 | . . . . . . . . 2 1 . . . . . 1 . . . . 1 3 . Garrison 6 | . . . . 1 . . . . 4 . . . . . . . . . . 1 . . Intercept . | . . . . . . . . . . . . . . . . . . . . . . . Searches Triggered . | . . . . . . . . . . . . . . . . . . . . . . . Construction Impeded 11 | . . . . . . . . . 3 . . . . 2 3 . . . . 2 1 . Haulers Reinforced 4 | . . . . . . . . . 1 . . . . . 1 . . . . 2 . . Active Scanning Responses . | . . . . . . . . . . . . . . . . . . . . . . . Cargo Convoy Interrupts 1 | . . . . . . . . . 1 . . . . . . . . . . . . . Stealth | -11 -10 -9 -9 -8 -7 -7 -7 -6 -5 -5 -5 -5 -5 -5 -4 -4 -4 -3 -3 -2 -1 -1 --------- Run | Yrd Mat Mat Min Mat Fac DSF Gar Fac Fac Gar Ext Cet Arc Hub Fac Upp Upp Res DSF Res Acc Com Distress Signals 22 | . . 2 . 3 . . . . . . 1 2 . 1 2 . . . . 7 4 . Communications Jammed . | . . . . . . . . . . . . . . . . . . . . . . . Distress Signals . | . . . . . . . . . . . . . . . . . . . . . . . Times Spotted 727 | . 44 40 11 46 . 5 20 29 79 27 43 38 4 19 60 14 5 . 16 80 72 75 Peak Tracking Total 27 | . 5 5 3 6 . 1 9 11 22 13 5 11 2 5 15 9 5 . 8 10 27 26 Tactical Retreats 75 | . 1 2 1 1 . . 7 4 5 1 5 2 . 2 6 5 . . 1 14 8 10 Traps | -11 -10 -9 -9 -8 -7 -7 -7 -6 -5 -5 -5 -5 -5 -5 -4 -4 -4 -3 -3 -2 -1 -1 ------- Run | Yrd Mat Mat Min Mat Fac DSF Gar Fac Fac Gar Ext Cet Arc Hub Fac Upp Upp Res DSF Res Acc Com Traps Triggered 41 | . 4 1 . . . 2 6 1 1 . 2 . . . 5 . . . 10 1 1 7 Indirectly 9 | . . . . . . . . . . . . . . . . . . . 8 1 . . Trap Hack Attempts . | . . . . . . . . . . . . . . . . . . . . . . . Triggered . | . . . . . . . . . . . . . . . . . . . . . . . Disarmed . | . . . . . . . . . . . . . . . . . . . . . . . Reprogrammed 1 | . . . . . . . . . . . 1 . . . . . . . . . . . Reused 4 | . . . . . . . 4 . . . . . . . . . . . . . . . Traps Extracted . | . . . . . . . . . . . . . . . . . . . . . . . Installed 6 | . . . . . . . 6 . . . . . . . . . . . . . . . Triggered 8 | . . . . . . . 4 . 4 . . . . . . . . . . . . . Most Traps Carried 1 | . . . . . . . 1 . . . . . . . . . . . . . . . Machines | -11 -10 -9 -9 -8 -7 -7 -7 -6 -5 -5 -5 -5 -5 -5 -4 -4 -4 -3 -3 -2 -1 -1 ---------- Run | Yrd Mat Mat Min Mat Fac DSF Gar Fac Fac Gar Ext Cet Arc Hub Fac Upp Upp Res DSF Res Acc Com Machines Disabled 54 | . 2 3 . 6 . . 5 2 3 . . 6 8 3 9 . . . . 6 1 . Max in Single Turn 3 | . 1 1 . 2 . . 1 1 2 . . 1 2 1 3 . . . . 2 1 . Garrison Access 3 | . . . . 1 . . . . . . . . . . 1 . . . . 1 . . Machines Repaired . | . . . . . . . . . . . . . . . . . . . . . . . Machines Dismantled . | . . . . . . . . . . . . . . . . . . . . . . . Machines Sabotaged . | . . . . . . . . . . . . . . . . . . . . . . . Overloaded Fab Kills . | . . . . . . . . . . . . . . . . . . . . . . . Hacking | -11 -10 -9 -9 -8 -7 -7 -7 -6 -5 -5 -5 -5 -5 -5 -4 -4 -4 -3 -3 -2 -1 -1 --------- Run | Yrd Mat Mat Min Mat Fac DSF Gar Fac Fac Gar Ext Cet Arc Hub Fac Upp Upp Res DSF Res Acc Com Machines Accessed 86 | . 6 8 . 16 3 . 2 2 9 . 12 2 1 1 5 . . 1 . 4 7 7 Terminals 63 | . 4 7 . 10 2 . 2 2 5 . 12 2 . 1 1 . . 1 . 3 5 6 Fabricators 2 | . . . . . . . . . . . . . . . 1 . . . . . 1 . Repair Stations 3 | . . . . 2 1 . . . . . . . . . . . . . . . . . Recycling Units 9 | . 2 1 . 1 . . . . 2 . . . . . 1 . . . . . 1 1 Scanalyzers 3 | . . . . 2 . . . . . . . . . . 1 . . . . . . . Garrison Access 5 | . . . . 1 . . . . 2 . . . . . 1 . . . . 1 . . Total Hacks 296 | . 26 33 . 63 7 . 5 6 28 . 24 9 25 5 12 . . 2 . 15 17 19 Successful 141 | . 11 14 . 32 4 . 2 3 13 . 17 3 25 2 4 . . 1 . 6 1 3 Failed 155 | . 15 19 . 31 3 . 3 3 15 . 7 6 . 3 8 . . 1 . 9 16 16 Catastrophic 36 | . 3 3 . 10 . . 1 1 3 . 1 1 . . 1 . . . . . 8 4 Database Lockouts . | . . . . . . . . . . . . . . . . . . . . . . . Manual 61 | . 10 12 . 19 1 . . 3 3 . 2 . . . . . . . . . 4 7 Terminals 218 | . 19 32 . 47 2 . 5 6 20 . 24 9 . 5 3 . . 2 . 14 13 17 Fabricators 5 | . . . . . . . . . . . . . . . 3 . . . . . 2 . Repair Stations 12 | . . . . 7 5 . . . . . . . . . . . . . . . . . Recycling Units 20 | . 7 1 . 2 . . . . 4 . . . . . 2 . . . . . 2 2 Scanalyzers 9 | . . . . 6 . . . . . . . . . . 3 . . . . . . . Garrison Access 7 | . . . . 1 . . . . 4 . . . . . 1 . . . . 1 . . Terminal Hacks 113 | . 8 13 . 20 1 . 2 3 9 . 17 3 25 2 1 . . 1 . 5 1 2 Record 42 | . . . . 2 . . . 2 3 . 5 3 25 . 1 . . . . . . 1 Robot Schematic 1 | . . . . . . . . . . . 1 . . . . . . . . . . . Robot Analysis 4 | . 1 . . 3 . . . . . . . . . . . . . . . . . . Prototype ID Bank 10 | . 2 2 . 4 . . . . . . . . . . . . . . . 2 . . Open Door 8 | . . . . . . . . . . . 8 . . . . . . . . . . . Open DSF 3 | . . . . . 1 . . . 1 . . . . . . . . 1 . . . . Branch Access Points 3 | . . 1 . 1 . . . . . . . . . . . . . . . . 1 . Emergency Access Points 7 | . 1 2 . . . . 1 . 1 . . . . 1 . . . . . . . 1 Alert Level 15 | . 2 3 . 6 . . . . 2 . 1 . . . . . . . . 1 . . Unreport Threat 6 | . . 2 . 3 . . . . . . . . . . . . . . . 1 . . Reprogram Traps 1 | . . . . . . . . . . . 1 . . . . . . . . . . . Patrol Status 1 | . 1 . . . . . . . . . . . . . . . . . . . . . Recall Investigation 4 | . . 2 . 1 . . . . 1 . . . . . . . . . . . . . Hauler Manifests 1 | . . 1 . . . . . . . . . . . . . . . . . . . . Zone Layout 6 | . 1 . . . . . . 1 1 . 1 . . 1 . . . . . 1 . . Patrol Navigation 1 | . . . . . . . 1 . . . . . . . . . . . . . . . Fabricator Hacks 1 | . . . . . . . . . . . . . . . 1 . . . . . . . Load Schematic 1 | . . . . . . . . . . . . . . . 1 . . . . . . . Repair Station Hacks 8 | . . . . 5 3 . . . . . . . . . . . . . . . . . Scan Component 5 | . . . . 3 2 . . . . . . . . . . . . . . . . . Repair 3 | . . . . 2 1 . . . . . . . . . . . . . . . . . Recycling Unit Hacks 6 | . 3 1 . 1 . . . . . . . . . . . . . . . . . 1 Report Inventory 3 | . 2 1 . . . . . . . . . . . . . . . . . . . . Retrieve Components 3 | . 1 . . 1 . . . . . . . . . . . . . . . . . 1 Scanalyzer 6 | . . . . 5 . . . . . . . . . . 1 . . . . . . . Insert Component 3 | . . . . 2 . . . . . . . . . . 1 . . . . . . . Analyze 3 | . . . . 3 . . . . . . . . . . . . . . . . . . Garrison Access Hacks 7 | . . . . 1 . . . . 4 . . . . . 1 . . . . 1 . . Unlock Access 2 | . . . . . . . . . 2 . . . . . . . . . . . . . Seal Access 3 | . . . . 1 . . . . . . . . . . 1 . . . . 1 . . Coupler Status 2 | . . . . . . . . . 2 . . . . . . . . . . . . . Unauthorized Hacks . | . . . . . . . . . . . . . . . . . . . . . . . Terminals . | . . . . . . . . . . . . . . . . . . . . . . . Fabricators . | . . . . . . . . . . . . . . . . . . . . . . . Repair Stations . | . . . . . . . . . . . . . . . . . . . . . . . Recycling Units . | . . . . . . . . . . . . . . . . . . . . . . . Scanalyzers . | . . . . . . . . . . . . . . . . . . . . . . . Garrison Access . | . . . . . . . . . . . . . . . . . . . . . . . Data Cores Recovered 2 | . . . . . . . . 1 . . . . . . . . . . . 1 . . Used . | . . . . . . . . . . . . . . . . . . . . . . . Hacking Detections 75 | . 6 7 . 15 3 . 2 2 7 . 9 2 . 1 4 . . . . 3 7 7 Full Trace Events 57 | . 6 6 . 11 1 . 1 2 5 . 4 2 . 1 3 . . . . 3 6 6 Feedback Events 3 | . . . . . . . . . 1 . 1 . . . 1 . . . . . . . Corruption 3 | . . . . . . . . . 1 . 1 . . . 1 . . . . . . . Feedback Blocked . | . . . . . . . . . . . . . . . . . . . . . . . Robot Schematics Acquired 1 | . . . . . . . . . . . 1 . . . . . . . . . . . Robots Built . | . . . . . . . . . . . . . . . . . . . . . . . Authchips . | . . . . . . . . . . . . . . . . . . . . . . . Time . | . . . . . . . . . . . . . . . . . . . . . . . Total Robot Build Rating . | . . . . . . . . . . . . . . . . . . . . . . . Part Schematics Acquired 2 | . . . . 2 . . . . . . . . . . . . . . . . . . Parts Built . | . . . . . . . . . . . . . . . . . . . . . . . Authchips . | . . . . . . . . . . . . . . . . . . . . . . . Time . | . . . . . . . . . . . . . . . . . . . . . . . Total Part Build Rating . | . . . . . . . . . . . . . . . . . . . . . . . Parts Repaired 3 | . . . . 2 1 . . . . . . . . . . . . . . . . . Time 140 | . . . . 102 38 . . . . . . . . . . . . . . . . . Parts Recycled . | . . . . . . . . . . . . . . . . . . . . . . . Recycled Matter . | . . . . . . . . . . . . . . . . . . . . . . . Retrieved Matter . | . . . . . . . . . . . . . . . . . . . . . . . Retrieved Components 20 | . 10 . . 10 . . . . . . . . . . . . . . . . . . Parts Scanalyzed 3 | . . . . 2 . . . . . . . . . . 1 . . . . . . . Part Schematics Acquired 2 | . . . . 2 . . . . . . . . . . . . . . . . . . Parts Damaged 1 | . . . . . . . . . . . . . . . 1 . . . . . . . Bothacking | -11 -10 -9 -9 -8 -7 -7 -7 -6 -5 -5 -5 -5 -5 -5 -4 -4 -4 -3 -3 -2 -1 -1 ------------ Run | Yrd Mat Mat Min Mat Fac DSF Gar Fac Fac Gar Ext Cet Arc Hub Fac Upp Upp Res DSF Res Acc Com Used RIF Installer 1 | . . . . . . . 1 . . . . . . . . . . . . . . . Robots Hacked 9 | . . . . . . . . . 2 . 1 . . . 2 2 . . . 2 . . Non-combat 3 | . . . . . . . . . . . 1 . . . . . . . . 2 . . Combat 6 | . . . . . . . . . 2 . . . . . 2 2 . . . . . . Robot Hacks Applied 12 | . . . . . . . . . 2 . 4 . . . 2 2 . . . 2 . . parse_system 7 | . . . . . . . . . 2 . . . . . 2 2 . . . 1 . . no_distress 1 | . . . . . . . . . . . 1 . . . . . . . . . . . find_recycling 1 | . . . . . . . . . . . . . . . . . . . . 1 . . ignore_parts 3 | . . . . . . . . . . . 3 . . . . . . . . . . . Relay Couplers Released . | . . . . . . . . . . . . . . . . . . . . . . . Attached 10 | . . . . . . . . . . 10 . . . . . . . . . . . . Fabnet Peak Effective % . | . . . . . . . . . . . . . . . . . . . . . . . Robots Rewired . | . . . . . . . . . . . . . . . . . . . . . . . Allies Hacked . | . . . . . . . . . . . . . . . . . . . . . . . Hacks Repelled . | . . . . . . . . . . . . . . . . . . . . . . . Allies | -11 -10 -9 -9 -8 -7 -7 -7 -6 -5 -5 -5 -5 -5 -5 -4 -4 -4 -3 -3 -2 -1 -1 -------- Run | Yrd Mat Mat Min Mat Fac DSF Gar Fac Fac Gar Ext Cet Arc Hub Fac Upp Upp Res DSF Res Acc Com Total Allies 9 | . . . 1 . . . . . . . 8 . . . . . . . . . . . Largest Group 5 | . . . 1 1 . . . . . . 5 . . . . . . . . . . . Highest-Rated Group 249 | . . . 31 31 . . . . . . 249 . . . . . . . . . . . Highest-Rated Ally 159 | . . . 31 31 . . . . . . 159 . . . . . . . . . . . Total Orders . | . . . . . . . . . . . . . . . . . . . . . . . Ally Attacks 67 | . . . . 12 . . . . . . 55 . . . . . . . . . . . Total Damage 2016 | . . . . 231 . . . . . . 1785 . . . . . . . . . . . Kills 13 | . . . . . . . . . . . 13 . . . . . . . . . . . Allies Corrupted . | . . . . . . . . . . . . . . . . . . . . . . . Allies Melted . | . . . . . . . . . . . . . . . . . . . . . . . Intel | -11 -10 -9 -9 -8 -7 -7 -7 -6 -5 -5 -5 -5 -5 -5 -4 -4 -4 -3 -3 -2 -1 -1 ------- Run | Yrd Mat Mat Min Mat Fac DSF Gar Fac Fac Gar Ext Cet Arc Hub Fac Upp Upp Res DSF Res Acc Com Robot Analysis Total 4 | . 1 . . 3 . . . . . . . . . . . . . . . . . . Derelict Logs Recovered 3 | . . . 2 . . . . . . . . . . . . 1 . . . . . . Drone Launches 9 | . . . . . . . . 3 . . 4 . . . 2 . . . . . . . Drone Recoveries 3 | . . . . . . . . 1 . . . . . . 2 . . . . . . . Exploration | -11 -10 -9 -9 -8 -7 -7 -7 -6 -5 -5 -5 -5 -5 -5 -4 -4 -4 -3 -3 -2 -1 -1 ------------- Run | Yrd Mat Mat Min Mat Fac DSF Gar Fac Fac Gar Ext Cet Arc Hub Fac Upp Upp Res DSF Res Acc Com Turns Passed 19045 | 632 1795 1225 699 1078 75 204 457 568 1583 1374 2303 1545 367 472 1216 215 86 31 583 1243 939 355 Spaces Moved 13839 | 98 1143 920 1096 1390 121 273 717 381 1080 431 1398 527 190 222 744 476 73 60 359 802 784 554 Core 3671 | 32 17 1 . 1 . . 69 160 430 427 486 237 . . 251 156 12 . 23 393 430 546 Treads 2052 | . . 229 . . . . . . 82 . 235 235 190 222 241 . . . 59 406 153 . Legs 1416 | 66 535 . . . . . . 48 21 . 412 . . . 82 . . . 249 3 . . Wheels 740 | . 591 124 . . . . . . . . . . . . 25 . . . . . . . Hover 751 | . . . . . . . . 173 258 . 265 55 . . . . . . . . . . Flight 5209 | . . 566 1096 1389 121 273 648 . 289 4 . . . . 145 320 61 60 28 . 201 8 Fastest Speed 25 | 50 50 34 34 28 29 29 29 50 35 32 50 50 160 160 25 34 29 29 29 50 37 40 Average Speed 86 | 107 111 90 34 30 29 29 31 113 94 98 123 212 160 160 98 42 65 29 127 107 87 50 Slowest Speed 1300 | 150 300 250 34 300 29 29 50 650 295 250 600 1000 160 160 1000 100 125 29 450 400 1300 150 Overloaded Moves . | . . . . . . . . . . . . . . . . . . . . . . . Propulsion Burnouts . | . . . . . . . . . . . . . . . . . . . . . . . Robots Hopped 42 | . . . 11 10 . . . . 6 . . . . . 10 . . . . . 4 1 Cave-ins Triggered 1 | . . . . . . . . . . . . . . . 1 . . . . . . . Exploration Rate (%) 50 | 6 97 77 99 88 3 97 43 10 32 30 96 96 92 24 20 60 9 1 98 29 24 33 Regions Visited 22 Branch Regions 8 Pre-discovered Areas 2 | . . . 1 . . . . . . . . . . . . 1 . . . . . . Known Exits Taken 10 | . . 1 1 1 1 . . . 1 . 1 . . 1 . . . 1 . 1 1 . Unknown Exits Taken 8 | 1 1 . . . . . . 1 . . . 1 1 . 1 1 1 . . . . . Scrap Searched 4 | . . . 1 . . . . . . . . . . . . 2 1 . . . . . Spaces Dug 43 | . 4 . . 16 . 5 1 4 4 . . . 1 . . . . . 8 . . . Terrain Destroyed 894 | . 5 28 4 61 . 14 7 15 43 . 21 19 10 25 176 . . . 46 349 38 33 Melee . | . . . . . . . . . . . . . . . . . . . . . . . Projectile 386 | . 5 4 4 25 . 14 7 15 24 . 21 19 10 25 53 . . . 12 110 38 . AOE 508 | . . 24 . 36 . . . . 19 . . . . . 123 . . . 34 239 . 33 Terrain Rammed 2 | . . . . . . . . . . . 1 . . . . . . . . . 1 . Walls Destroyed . | . . . . . . . . . . . . . . . . . . . . . . . Machines Disabled . | . . . . . . . . . . . . . . . . . . . . . . . Actions | -11 -10 -9 -9 -8 -7 -7 -7 -6 -5 -5 -5 -5 -5 -5 -4 -4 -4 -3 -3 -2 -1 -1 --------- Run | Yrd Mat Mat Min Mat Fac DSF Gar Fac Fac Gar Ext Cet Arc Hub Fac Upp Upp Res DSF Res Acc Com Total 18611 | 611 1419 1117 1359 1831 159 352 899 467 1356 1348 1806 820 213 261 1014 491 92 68 428 959 921 620 Wait 2045 | 492 35 34 243 181 38 1 49 19 23 706 110 21 . . 16 13 . . . 3 61 . Move 13738 | 97 1142 919 1073 1369 120 272 715 380 1067 429 1397 526 189 221 729 475 72 59 358 802 776 551 Hop 35 | . . . 11 10 . . . . 6 . . . . . 4 . . . . . 3 1 Pick Up 38 | 5 8 6 . 4 . 1 6 . 2 . . . . . . . . . . 2 . 4 Fast Attach 477 | 6 20 24 1 64 1 5 2 19 58 15 61 28 5 3 58 1 6 5 28 32 28 7 Attach 25 | . 7 4 . 2 . 1 . 1 . . 5 1 . . 2 . . . . 1 1 . Detach 25 | . 3 2 . 6 . . . 3 1 . 6 1 . . 1 . . 1 . 1 . . Swap 14 | . 2 2 2 . . 1 . 3 2 . . . 1 . 1 . . . . . . . Drop 125 | . 6 18 3 51 . 5 7 4 12 1 . 4 1 1 1 . . 1 4 4 . 2 Fire 1119 | 11 139 106 26 136 . 30 34 24 146 5 76 64 17 30 101 . 14 1 31 97 26 5 Melee 44 | . . . . 7 . . 3 . 5 . 12 . . . 2 2 . . 3 2 8 . Ram 695 | . 22 1 . 1 . . 9 14 29 189 88 175 . . 91 . . . 1 15 18 42 Kick 42 | . 35 . . . . . . . . . . . . . 7 . . . . . . . Crush 9 | . . 1 . . . . . . 1 . . . . 6 1 . . . . . . . Escape Stasis 144 | . . . . . . 36 68 . . . 29 . . . . . . . 3 . . 8 Rewire 25 | . . . . . . . . . . 3 22 . . . . . . . . . . . Trap 6 | . . . . . . . 6 . . . . . . . . . . . . . . . Miscellaneous 5 | . . . . . . . . . 4 . . . . . . . . 1 . . . . Route ------- -11/Scrapyard -10/Materials (discovered 5 exits: *Mat x3 / [*Min] / [*Sub]) -9/Materials (discovered 5 exits: *Mat x3 / *Min x2) -9/Mines (discovered 2 exits: *Mat x2) -8/Materials (discovered 4 exits: *Fac x2 / Sto x2) -7/Factory -7/DSF -7/Garrison -6/Factory -5/Factory (discovered 2 exits: Gar / Gar) -5/Garrison -5/Extension (discovered 3 exits: *Fac x2 / *Cet) -5/Cetus (discovered 3 exits: *Fac x2 / *Arc) -5/Archives (discovered 2 exits: *Fac / *Hub) -5/Hub_04(d) (discovered 2 exits: *Fac x2) -4/Factory -4/Upper Caves -4/Upper Caves -3/Research -3/DSF -2/Research -1/Access -1/Command To Epsilon Eridani History --------- Turn | Location | Event 19 | -11/Scrapyard | Discovered new exit (range 15) 633 | -11/Scrapyard | Entered Materials 634 | -10/Materials | Build established: Mutant 791 | -10/Materials | Discovered new exit (range 16) 867 | -10/Materials | Discovered new exit (range 8) 1175 | -10/Materials | Lost 11 parts (1p4n2u4w) 1203 | -10/Materials | Discovered new exit (range 4) 1376 | -10/Materials | Discovered new exit (range 5) 1792 | -10/Materials | Lost 3 parts (2n1w) 1958 | -10/Materials | Discovered new exit (range 6) 2428 | -10/Materials | Entered another Materials area 2428 | -9/Materials | Evolved 2 slots: Propulsion x1, Utility x1 2438 | -9/Materials | Identified exit to Mines 2768 | -9/Materials | Discovered new exit (range 16) 2877 | -9/Materials | Lost 5 parts (1p1n1u2w) 3139 | -9/Materials | Build established: Scavenger-Mutant 3249 | -9/Materials | Discovered new exit (range 15) 3580 | -9/Materials | Build established: Mutant 3597 | -9/Materials | Discovered new exit (range 7) 3653 | -9/Materials | Entered Mines 3680 | -9/Mines | Discovered new exit (range 5) 3692 | -9/Mines | Destroyed 8 combat bots 3695 | -9/Mines | Learned Materials trap positions 3699 | -9/Mines | Discovered new exit (range 3) 3755 | -9/Mines | Identified exit to Materials 3786 | -9/Mines | Found a hidden stash of uninstalled traps 4288 | -9/Mines | Escorted by a lone wolf Derelict 4308 | -9/Mines | Learned location of Storage (-8) 4352 | -9/Mines | Entered Materials 4352 | -8/Materials | Accompanied by 1 ally 4352 | -8/Materials | Evolved 2 slots: Propulsion x1, Utility x1 4353 | -8/Materials | Identified exit to Factory 4354 | -8/Materials | Loaded intel: 18 trap records 4578 | -8/Materials | Lost 3 parts (1p1n1w) 4627 | -8/Materials | Identified exit to Storage 4712 | -8/Materials | Repaired Imp. Flight Unit 4862 | -8/Materials | Garrison activated, responded to threat 4914 | -8/Materials | Build established: Sprinter 4918 | -8/Materials | Repaired Imp. Flight Unit 5396 | -8/Materials | Discovered exit to Factory (range 9) 5430 | -8/Materials | Entered Factory 5430 | -7/Factory | Evolved 2 slots: Utility x1, Weapon x1 5485 | -7/Factory | Repaired Hvy. Assault Cannon 5502 | -7/Factory | Identified exit to DSF 5505 | -7/Factory | Entered DSF 5522 | -7/DSF | Additional patrols routed to DSF 5598 | -7/DSF | Discovered new exit (range 15) 5609 | -7/DSF | Identified exit to Garrison 5709 | -7/DSF | Entered Garrison 5851 | -7/Garrison | Triggered checkpoint 5908 | -7/Garrison | Triggered checkpoint 6016 | -7/Garrison | Installed Relay Interface Framework 6147 | -7/Garrison | Lost 5 parts (4n1w) 6160 | -7/Garrison | Discovered new exit (range 10) 6166 | -7/Garrison | Entered Factory 6166 | -6/Factory | Evolved 2 slots: Utility x1, Weapon x1 6167 | -6/Factory | Core integrity fell below 50% 6516 | -6/Factory | First assault squad dispatched 6537 | -6/Factory | Build established: Gunner 6567 | -6/Factory | Lost 3 parts (2u1w) 6617 | -6/Factory | Discovered new exit (range 15) 6626 | -6/Factory | Lost 7 parts (4n3w) 6708 | -6/Factory | Lost 4 parts (1n2u1w) 6734 | -6/Factory | Entered another Factory area 6734 | -5/Factory | Evolved 2 slots: Utility x2 6867 | -5/Factory | Identified exit to Garrison 6870 | -5/Factory | Build established: Mutant 7078 | -5/Factory | Garrison activated, responded to threat 7093 | -5/Factory | System corruption reached 10% 7140 | -5/Factory | Lost 6 parts (1p2u3w) 7345 | -5/Factory | Lost 9 parts (3n1u5w) 7597 | -5/Factory | Build established: Scavenger-Gunner 7638 | -5/Factory | Cargo convoy interrupted 7848 | -5/Factory | Lost 10 parts (2n3u5w) 8054 | -5/Factory | Spotted B-75 Beast 8067 | -5/Factory | Lost 3 parts (3u) 8163 | -5/Factory | Lost 9 parts (3n1u5w) 8234 | -5/Factory | First assault squad dispatched 8276 | -5/Factory | Garrison activated, responded to threat 8317 | -5/Factory | Identified exit to Garrison 8317 | -5/Factory | Entered Garrison 8327 | -5/Garrison | Lost 6 parts (2n2u2w) 8331 | -5/Garrison | Triggered checkpoint 8396 | -5/Garrison | Build established: Mutant 9491 | -5/Garrison | Triggered checkpoint 9619 | -5/Garrison | Triggered checkpoint 9639 | -5/Garrison | Triggered checkpoint 9680 | -5/Garrison | Discovered new exit (range 15) 9691 | -5/Garrison | Entered Extension 9711 | -5/Extension | Lost 10 parts (1p2n7u) 9824 | -5/Extension | Lost 3 parts (2u1w) 9910 | -5/Extension | Lost 8 parts (7u1w) 10085 | -5/Extension | Lost 5 parts (1p1n2u1w) 10141 | -5/Extension | Rescued A7 10223 | -5/Extension | Rescued a captive Derelict 10223 | -5/Extension | Rescued a captive Derelict 10225 | -5/Extension | Lost 8 parts (1p2n2u3w) 10252 | -5/Extension | Rescued a captive Derelict 10264 | -5/Extension | Rescued a captive Derelict 10324 | -5/Extension | Spotted B-75 Beast 10354 | -5/Extension | Spotted B-75 Beast 10389 | -5/Extension | Lost 3 allies 10397 | -5/Extension | Lost 6 parts (2n1u3w) 10488 | -5/Extension | Build established: Hacker-Mutant 10535 | -5/Extension | Extracted ID and sensor layout for unrecognized location from A7's data core 10574 | -5/Extension | Discovered new exit (range 3) 10602 | -5/Extension | Lost 4 parts (2u2w) 10659 | -5/Extension | Rescued a captive Derelict 10665 | -5/Extension | Rescued a captive Derelict 10836 | -5/Extension | Lost 3 parts (1u2w) 10857 | -5/Extension | Rescued a captive Derelict 10946 | -5/Extension | Discovered new exit (range 10) 10948 | -5/Extension | Discovered new exit (range 6) 11195 | -5/Extension | Identified exit to Factory 11201 | -5/Extension | Identified exit to Cetus 11481 | -5/Extension | Build established: Hacker-Skirmisher 11732 | -5/Extension | Lost 4 parts (1n2u1w) 11736 | -5/Extension | Destroyed B-75 Beast 11994 | -5/Extension | Entered Cetus 12015 | -5/Cetus | Spotted Cetus Guard 12015 | -5/Cetus | Spotted Cetus Guard 12018 | -5/Cetus | Spotted Cetus Guard 12018 | -5/Cetus | Spotted Cetus Guard 12070 | -5/Cetus | Discovered exit to Factory (range 15) 12137 | -5/Cetus | Lost 11 parts (2n5u4w) 12210 | -5/Cetus | Destroyed Cetus Guard 12260 | -5/Cetus | Destroyed Cetus Guard 12578 | -5/Cetus | Build established: Scavenger-Tank 12744 | -5/Cetus | Security sweep announced 12882 | -5/Cetus | Cetus Manufacturing Module disabled 12915 | -5/Cetus | Lost 6 parts (1n2u3w) 12923 | -5/Cetus | Discovered new exit (range 18) 12933 | -5/Cetus | Spotted Cetus Guard 12934 | -5/Cetus | Spotted Cetus Guard 12934 | -5/Cetus | Spotted Cetus Guard 12934 | -5/Cetus | Spotted Cetus Guard 12935 | -5/Cetus | Discovered exit to Factory (range 17) 12999 | -5/Cetus | Destroyed Cetus Guard 13071 | -5/Cetus | Destroyed Cetus Guard 13099 | -5/Cetus | Destroyed Cetus Guard 13186 | -5/Cetus | Met Revision 17 13539 | -5/Cetus | Entered Archives 13577 | -5/Archives | Unable to access archive contents 13636 | -5/Archives | Discovered new exit (range 16) 13666 | -5/Archives | Unable to access archive contents 13679 | -5/Archives | Discovered exit to Factory (range 15) 13695 | -5/Archives | Unable to access archive contents 13749 | -5/Archives | Unable to access archive contents 13906 | -5/Archives | Entered Hub_04(d) 13919 | -5/Hub_04(d) | Discovered exit to Factory (range 10) 14222 | -5/Hub_04(d) | Discovered exit to Factory (range 16) 14314 | -5/Hub_04(d) | Destroyed 7 combat bots 14378 | -5/Hub_04(d) | Entered Factory 14378 | -4/Factory | Evolved 2 slots: Weapon x2 14385 | -4/Factory | Lost 5 parts (1n3u1w) 14823 | -4/Factory | Build established: Scavenger-Executioner 15092 | -4/Factory | Lost 19 parts (1p4n7u7w) 15128 | -4/Factory | First assault squad dispatched 15134 | -4/Factory | Lost 4 parts (1n3w) 15222 | -4/Factory | Lost 8 parts (2n6w) 15304 | -4/Factory | Lost 3 parts (1n2w) 15330 | -4/Factory | Crushed by falling debris 15368 | -4/Factory | Lost 3 parts (1u2w) 15462 | -4/Factory | Build established: Mutant 15554 | -4/Factory | Destroyed 7 combat bots 15583 | -4/Factory | Lost 13 parts (4n2u7w) 15590 | -4/Factory | Discovered new exit (range 9) 15594 | -4/Factory | Entered Upper Caves 15609 | -4/Upper Caves | Attracted the attention of an 0b10 checkpoint 15672 | -4/Upper Caves | Learned location of Armory (-4) 15751 | -4/Upper Caves | Lost 5 parts (3n1u1w) 15779 | -4/Upper Caves | Discovered new exit (range 10) 15809 | -4/Upper Caves | Entered another Upper Caves area 15812 | -4/Upper Caves | Encountered a Warlord checkpoint 15847 | -4/Upper Caves | Discovered new exit (range 10) 15893 | -4/Upper Caves | Lost 4 parts (1n1u2w) 15895 | -4/Upper Caves | Entered Research 15895 | -3/Research | Evolved 2 slots: Weapon x2 15926 | -3/Research | Identified exit to DSF 15926 | -3/Research | Entered DSF 15941 | -3/DSF | Additional patrols routed to DSF 16016 | -3/DSF | Found Gamma Bomb Array 16020 | -3/DSF | Found Gamma Bomb Array 16041 | -3/DSF | Lost 12 parts (3n2u7w) 16071 | -3/DSF | System corruption reached 10% 16079 | -3/DSF | Sterilization system engaged 16099 | -3/DSF | Ambient heat levels rising (+10) 16114 | -3/DSF | Ambient heat levels rising (+10) 16129 | -3/DSF | Ambient heat levels rising (+10) 16144 | -3/DSF | Ambient heat levels rising (+10) 16159 | -3/DSF | Ambient heat levels rising (+10) 16174 | -3/DSF | Ambient heat levels rising (+10) 16189 | -3/DSF | Ambient heat levels rising (+10) 16204 | -3/DSF | Ambient heat levels rising (+10) 16219 | -3/DSF | Ambient heat levels rising (+10) 16234 | -3/DSF | Ambient heat levels rising (+10) 16234 | -3/DSF | Discovered new exit (range 15) 16249 | -3/DSF | Ambient heat levels rising (+10) 16264 | -3/DSF | Ambient heat levels rising (+10) 16279 | -3/DSF | Ambient heat levels rising (+10) 16294 | -3/DSF | Ambient heat levels rising (+10) 16309 | -3/DSF | Ambient heat levels rising (+10) 16324 | -3/DSF | Ambient heat levels rising (+10) 16339 | -3/DSF | Ambient heat levels rising (+10) 16354 | -3/DSF | Ambient heat levels rising (+10) 16369 | -3/DSF | Ambient heat levels rising (+10) 16384 | -3/DSF | Ambient heat levels rising (+10) 16392 | -3/DSF | Build established: Executioner 16399 | -3/DSF | Ambient heat levels rising (+10) 16414 | -3/DSF | Ambient heat levels rising (+10) 16429 | -3/DSF | Ambient heat levels rising (+10) 16444 | -3/DSF | Ambient heat levels rising (+10) 16459 | -3/DSF | Ambient heat levels rising (+10) 16474 | -3/DSF | Ambient heat levels rising (+10) 16489 | -3/DSF | Ambient heat levels rising (+10) 16504 | -3/DSF | Ambient heat levels rising (+10) 16509 | -3/DSF | Entered Research 16509 | -2/Research | Evolved 2 slots: Utility x1, Weapon x1 16804 | -2/Research | Lost 4 parts (2u2w) 17181 | -2/Research | Garrison activated, responded to threat 17190 | -2/Research | Lost 3 parts (2u1w) 17245 | -2/Research | Destroyed 13 combat bots 17349 | -2/Research | Lost 15 parts (2n3u10w) 17401 | -2/Research | Spotted B-90 Cyclops 17509 | -2/Research | First assault squad dispatched 17511 | -2/Research | Found Gamma Bomb Array 17514 | -2/Research | Found Gamma Bomb Array 17519 | -2/Research | Lost 7 parts (4u3w) 17520 | -2/Research | Found Gamma Bomb Array 17534 | -2/Research | Found Gamma Bomb Array 17538 | -2/Research | Found Gamma Bomb Array 17590 | -2/Research | Destroyed 12 combat bots 17640 | -2/Research | Found Prototype Processor 17640 | -2/Research | Identified Exp. Signal Interpreter 17656 | -2/Research | Lost 6 parts (1n5w) 17748 | -2/Research | Discovered new exit (range 6) 17751 | -2/Research | Identified exit to Access 17752 | -2/Research | Entered Access 17752 | -1/Access | Evolved 2 slots: Utility x1, Weapon x1 17783 | -1/Access | Lost 4 parts (1u3w) 17810 | -1/Access | Spotted B-99 Colossus 18032 | -1/Access | First assault squad dispatched 18406 | -1/Access | Lost 15 parts (3n1u11w) 18528 | -1/Access | Lost 9 parts (4n5u) 18557 | -1/Access | Spotted B-99 Colossus 18581 | -1/Access | Build established: Mutant 18581 | -1/Access | Identified exit to Command 18626 | -1/Access | Spotted B-99 Colossus 18627 | -1/Access | Spotted B-99 Colossus 18691 | -1/Access | Entered Command 18824 | -1/Command | Lost 3 parts (1n2u) 18978 | -1/Command | Found Prototype Launcher 18978 | -1/Command | Identified Adv. Micro-nuke Launcher 18984 | -1/Command | Found Adv. Micro-nuke Launcher 18991 | -1/Command | Found Adv. Micro-nuke Launcher 18998 | -1/Command | Found Adv. Micro-nuke Launcher 19026 | -1/Command | Lost 3 parts (3w) 19029 | -1/Command | Spotted Alpha 7 19029 | -1/Command | Spotted Alpha 7 19029 | -1/Command | Spotted Striker 19029 | -1/Command | Spotted Striker 19029 | -1/Command | Spotted Executioner 19029 | -1/Command | Spotted Executioner 19029 | -1/Command | Spotted Executioner 19029 | -1/Command | Spotted Executioner 19030 | -1/Command | Spotted B-99 Colossus 19031 | -1/Command | Spotted B-99 Colossus 19041 | -1/Command | Discovered new exit (range 8) 19046 | *** | Escaped! Last Messages --------------- 19043_ Field strength at 79. 19043_ Penetrated by Slug. 19043_ Slug penetrates Wall. 19044_ Field strength at 53. 19044_ Field strength at 55. 19044_ Knocked back. 19044_ Penetrated by Slug. 19045_ Field strength at 45. 19045_ Knocked back. 19045_ Slug penetrates Wall. 19045_ Penetrated by Slug. 19045_ Slug penetrates Wall. 19045_ Slug penetrates Executioner. 19045_ Penetrated by Slug. 19046_ Field strength at 37. [Achievement: 10k Club] [Achievement: 20k Club] [Achievement: 30k Club] [Achievement: Just Browsing] [Achievement: Epsilon Run] Map ----- +----------------------------------------------------+ | ?????????????????????????????????????????????????? | | ?????????????????????????????????????????????????? | | ?????????????????????????????????????????????????? | | ?????????????????????????????????????????????????? | | ?????????????????????????????????????????????????? | | ?????????????????????????????????????????????????? | | ?????????????????????????????????????????????????? | | ??????????????H??????????????????????????????????? | | ?????????????????????????????????????????????????? | | ?????????????????????????????????????????????????? | | ?????????????????????????????????????????????????? | | ?????????????????????????????????????????????????? | | ?????????????????????????????????????????????????? | | ?????+##?????????????????????????????????????????? | | ???? #?????????????????????????????????????????? | | ??? #?????????????????????????????????????????? | | ?? #?????????????????????????????????????????? | | "" #?????????????????????????????????????????? | | Y" #?????????????????????????????????????????? | | "" #??????????##############?????????????????? | | "" #??????????# #?????????????????? | | ? #??######### #?????????????????? | | ?? ?### ; # # #BB% #?????????????????? | | ####+#### %%p 7 E BB #?????????????????? | | "%"% / ^b K^E ^ #?????????????????? | | " " % ^ % "@ #?????????????????? | | "^ E K ^ "" #?????????????????? | | " ^^7 E R^ #?????????????????? | | ####""##" ^^ ^BB #?????????????????? | | ?? ?#"## # #%# ;BB #?????????????????? | | ?##?######### #?????????????????? | | ! ""???????????# #?????????????????? | | ""???????????##############?????????????????? | | ""#?????????????????????????????????????????? | | T#?????????????????????????????????????????? | | ""??????????????????????????????????????????? | | "???????????????????????????????????????????? | | "???????????????????????????????????????????? | | ????????????????????????????????????????????? | | ????????????????????????????????????????????? | | #####????????????????????????????????????????????? | | ?????????????????????????????????????????????????? | | ############?????????????????????????????????????? | | #?????????????????????????????????????? | | #?????????????????????????????????????? | | #?????????????????????????????????????? | | #?????????????????????????????????????? | | #?????????????????????????????????????? | | ####### #?????????????????????????????????????? | | #######+## #?????????????????????????????????????? | +----------------------------------------------------+ Best States ------------- Heat Dissipation 78 Coolant Potential 80 Energy Generation 25 Energy Capacity 600 Matter Stores 300 Matter Capacity 300 Sight Range 22 Robot Scan Range 16 Terrain Scan Range 24 Terrain Scan Density 10 ECM Strength 2 Cloak Strength 3 Additional Mass Support 9 Armor Coverage 1050 Resistance: KI 25 Resistance: TH 15 Resistance: EM 25 Power Shielding 66 Utility Shielding 90 Weapon Shielding 66 Point Defense Rating 320 Phase Shifting 15 Evasion (%) 71 Targeting Accuracy 35 Melee Accuracy 6 Launcher Accuracy 30 Target Analysis 9 Recoil Reduction 4 Particle Charging 25 Salvage Targeting 4 Offensive Hacking 60 Defensive Hacking 14 Relay Coupler Types 4 Relay Coupler Value 343 Trap Extractor Capacity 4 Item Schematics ----------------- Ion Cannon | -8/Materials | Scanalyzed Hvy. Assault Cannon | -8/Materials | Scanalyzed Robot Schematics ------------------ B-60 Warrior | -5/Extension | Hacked Fabricated ------------ Nothing Alien Tech Used ----------------- None Achievements -------------- 10k Club 20k Club 30k Club Armchair Analyst Batter Up Can't Catch Me Can't Touch This Cya! Dangerous Findings Denied? Epsilon Run Everything Is Under Control Executioner Hey, That's Mine! Hunted Just Browsing Knowing Is Half The Battle Left-hand Path Let's See Who's Tougher Ooh, Shiny! Please Form A Line Prison Break Prolific Hacker Remodeling Respectable Loadout Revising The Future Significant Disruption The More The Merrier Troublemaker Universal Adapter Challenges ------------ None Game ------ Seed LobotomyDisruptionPick Manual? 0 Play Time 05:12:35 Cumulative 14.4 hours Start 2024.08.15 @ 01:21:48 End 2024.08.15 @ 06:46:24 Sessions 1 Manual Loads 0 Difficulty Rogue Special Mode None Game No. 8 Rogue 8 Adventurer 0 Explorer 0 Win Type 0 Total 1 Types 1/0/0/0/0/0/0/0/0 Lore% 12 Gallery% 27 Achievement% 23 Wizard Run 0 Options --------- Layout 1 ASCII 0 Keyboard 1 Movement Numpad Keybinds 0 Fullscreen 1 Font 24/Smallcaps Map View 50x35 Zoom Use 0% Tactical HUD 1 Map Filters NONE Filters NONE Steam 1 RUN: e7bd03e3-3ed2-4ac4-a4e1-0be4dca8335c